bitfinex-derivatives/quotes_BTCF0:USTF0_20241010
["timestamp","ask_amount","ask_price","bid_price","bid_amount"]
[1728583684099,0.8608,59246.0,59236.0,0.084504]
[1728583684306,0.8608,59246.0,59241.0,0.3608]
[1728583685003,0.3608,59246.0,59243.0,0.084494]
[1728583685201,0.3608,59246.0,59242.0,0.43318027]
[1728583685399,0.3608,59246.0,59244.0,0.43550055]
[1728583685596,0.3608,59246.0,59244.0,0.18086374]
[1728583685792,0.3678,59246.0,59245.0,0.25463681]
[1728583686006,0.3718,59246.0,59245.0,0.25463681]
[1728583686197,0.3718,59246.0,59229.0,0.00253223]
[1728583686198,0.084496,59242.0,59229.0,0.00253223]
[1728583686398,0.5004,59234.0,59229.0,0.00253223]
[1728583687306,0.5004,59234.0,59233.0,0.3907356]
[1728583687502,0.0004,59234.0,59233.0,0.64538368]
[1728583688403,0.0034,59234.0,59233.0,0.56130343]
[1728583688610,0.0064,59234.0,59233.0,0.56130343]
[1728583688802,0.8672,59234.0,59229.0,0.00253223]
[1728583688996,0.8642,59234.0,59229.0,0.00253223]
[1728583689202,0.8622,59234.0,59229.0,0.00253223]
[1728583690097,0.8652,59234.0,59229.0,0.00253223]
[1728583690299,0.3608,59232.0,59229.0,0.00232767]
[1728583690705,0.50648,59231.0,59229.0,0.00232767]
[1728583690906,0.3608,59232.0,59229.0,0.00232767]
[1728583691107,0.5,59230.0,59229.0,0.00232767]
[1728583691406,0.5,59230.0,59223.0,0.3608]
[1728583691599,0.3608,59226.0,59215.0,0.3608]
[1728583691798,0.3608,59226.0,59224.0,0.25347621]
[1728583692009,0.3628,59232.0,59225.0,0.08452]
[1728583692205,0.5,59233.0,59225.0,0.08452]
[1728583692411,0.5,59233.0,59226.0,0.25391155]
[1728583692704,0.5,59233.0,59217.0,0.25391155]
[1728583692705,0.8608,59233.0,59227.0,0.084517]
[1728583692903,0.8608,59233.0,59224.0,0.3608]
[1728583693103,0.0004,59234.0,59228.0,0.25391155]
[1728583693304,0.00253334,59238.0,59229.0,0.8608]
[1728583693510,0.3608,59252.0,59237.0,0.3608]
[1728583693805,0.3608,59252.0,59239.0,0.0845]
[1728583693806,0.5,59251.0,59239.0,0.0845]
[1728583694005,0.5,59251.0,59239.0,0.00836688]
[1728583694205,0.5,59251.0,59237.0,0.3608]
[1728583694206,0.5,59251.0,59241.0,0.084498]
[1728583694399,0.5,59251.0,59242.0,0.0084751]
[1728583694596,0.3608,59252.0,59242.0,0.25302894]
[1728583694802,0.3608,59256.0,59240.0,0.50827726]
[1728583695003,0.3608,59256.0,59244.0,0.3608]
[1728583695202,0.8608,59256.0,59244.0,0.00850047]
[1728583695410,0.8608,59256.0,59245.0,0.33827891]
[1728583695606,0.8608,59256.0,59247.0,0.084488]
[1728583695802,0.8608,59256.0,59244.0,0.0083728]
[1728583696007,0.8748,59256.0,59248.0,0.25378791]
[1728583696218,0.8748,59256.0,59246.0,0.33827791]
[1728583696407,0.8748,59256.0,59247.0,0.25185933]
[1728583696408,0.8608,59256.0,59247.0,0.25185933]
[1728583696608,0.8808,59256.0,59247.0,0.25185933]
[1728583696912,0.8808,59256.0,59246.0,0.61265933]
[1728583697408,0.8808,59256.0,59247.0,0.25147622]
[1728583697814,0.8808,59256.0,59248.0,0.084488]
[1728583698006,0.3778,59256.0,59248.0,0.001]
[1728583698207,0.3778,59256.0,59254.0,0.084479]
[1728583698613,0.3748,59256.0,59255.0,0.25383164]
[1728583698806,0.3748,59256.0,59255.0,0.51513529]
[1728583699003,0.00253186,59268.0,59253.0,0.5]
[1728583699316,0.3608,59275.0,59265.0,0.3608]
[1728583699512,0.5,59272.0,59265.0,0.3608]
[1728583700009,0.5,59272.0,59258.0,0.47312]
[1728583700205,0.584454,59272.0,59258.0,0.47312]
[1728583700405,0.36076,59275.0,59261.0,0.61385309]
[1728583700611,0.36076,59275.0,59261.0,0.3608]
[1728583700817,0.36076,59275.0,59262.0,0.25305309]
[1728583701117,0.011,59268.0,59267.0,0.3608]
[1728583701414,0.3718,59268.0,59258.0,0.47312]
[1728583701607,0.011,59268.0,59262.0,0.3608]
[1728583701807,0.445259,59268.0,59261.0,0.002]
[1728583702107,0.008,59268.0,59267.0,0.001]
[1728583702306,0.51416,59268.0,59261.0,0.001]
[1728583702613,0.51416,59268.0,59258.0,0.001]
[1728583702614,0.084473,59259.0,59258.0,0.001]
[1728583702804,0.6808,59262.0,59258.0,0.001]
[1728583703008,0.50624,59261.0,59258.0,0.001]
[1728583703215,0.084472,59259.0,59258.0,0.001]
[1728583703410,0.50624,59260.0,59243.0,0.00851215]
[1728583703611,1.0416,59251.0,59227.0,0.08542053]
[1728583703814,0.3608,59234.0,59227.0,0.00253278]
[1728583704031,0.3608,59228.0,59227.0,0.00253278]
[1728583704414,0.86732,59228.0,59227.0,0.00253278]
[1728583704613,0.3608,59228.0,59227.0,0.00253278]
[1728583704914,0.3608,59228.0,59217.0,0.8608]
[1728583705109,0.3608,59228.0,59218.0,0.08453]
[1728583705307,0.3618,59228.0,59227.0,0.009]
[1728583705519,0.3618,59228.0,59227.0,0.016]
[1728583705907,0.3608,59228.0,59227.0,0.01]
[1728583706515,0.001,59234.0,59227.0,0.68068156]
[1728583707112,0.3608,59239.0,59227.0,0.68068156]
[1728583707714,0.3608,59239.0,59227.0,0.25476181]
[1728583707909,0.003,59234.0,59227.0,0.25476181]
[1728583708115,0.007,59234.0,59223.0,0.25160391]
[1728583708314,0.3678,59234.0,59223.0,0.084523]
[1728583708516,0.3678,59234.0,59223.0,0.33617491]
[1728583708716,0.3608,59234.0,59227.0,0.002]
[1728583709119,0.3608,59234.0,59228.0,0.25165191]
[1728583709315,0.3648,59234.0,59228.0,0.25165191]
[1728583709621,0.3648,59234.0,59228.0,0.16757166]
[1728583710129,0.004,59234.0,59232.0,0.5]
[1728583710422,0.008,59239.0,59238.0,0.084502]
[1728583710615,0.008,59239.0,59238.0,0.584502]
[1728583710822,0.008,59239.0,59238.0,0.83850114]
[1728583711122,0.00253306,59241.0,59239.0,0.0845]
[1728583711425,0.00253306,59241.0,59240.0,0.25353364]
[1728583711611,0.3597,59247.0,59240.0,1.02291378]
[1728583711818,0.3597,59247.0,59240.0,0.51651378]
[1728583712120,0.445273,59258.0,59248.0,0.084487]
[1728583712121,0.3608,59258.0,59248.0,0.084487]
[1728583712423,0.3608,59264.0,59249.0,0.83870778]
[1728583712622,0.3608,59264.0,59249.0,0.75422178]
[1728583712825,0.3608,59264.0,59256.0,0.3608]
[1728583713122,0.3608,59264.0,59257.0,0.25422178]
[1728583713319,0.3608,59269.0,59260.0,0.8608]
[1728583713527,0.3608,59269.0,59261.0,0.084469]
[1728583713724,0.3608,59269.0,59261.0,0.25153899]
[1728583714917,0.445267,59263.0,59261.0,0.001]
[1728583715225,0.5,59265.0,59261.0,0.001]
[1728583715226,0.50232,59265.0,59261.0,0.001]
[1728583715425,0.5,59265.0,59261.0,0.002]
[1728583715621,0.3788,59269.0,59254.0,0.27871975]
[1728583716120,0.003,59263.0,59255.0,0.25259314]
[1728583716327,0.003,59263.0,59259.0,0.084471]
[1728583716526,0.009,59265.0,59261.0,0.001]
[1728583716732,0.009,59265.0,59263.0,0.3608]
[1728583717029,0.009,59265.0,59264.0,0.25388177]
[1728583717420,0.009,59265.0,59261.0,0.001]
[1728583717917,0.01,59265.0,59261.0,0.001]
[1728583718119,0.01,59265.0,59259.0,0.3608]
[1728583718120,0.001,59265.0,59259.0,0.3608]
[1728583718830,0.001,59265.0,59259.0,0.27636194]
[1728583719039,0.001,59265.0,59254.0,0.27871975]
[1728583719227,0.004,59265.0,59254.0,0.27871975]
[1728583719424,0.004,59265.0,59255.0,0.25300343]
[1728583719817,0.004,59265.0,59256.0,0.67741233]
[1728583720017,0.004,59265.0,59260.0,0.084469]
[1728583720322,0.003,59265.0,59264.0,0.084465]
[1728583720522,0.007,59265.0,59264.0,0.084465]
[1728583720821,0.007,59265.0,59264.0,1.63006318]
[1728583721227,0.005,59265.0,59264.0,1.54559818]
[1728583721430,0.005,59265.0,59264.0,1.63006318]
[1728583721731,0.003,59265.0,59264.0,0.35496012]
[1728583721933,0.084447,59277.0,59264.0,0.35796012]
[1728583722228,0.3608,59270.0,59264.0,0.005]
[1728583722426,0.3608,59270.0,59248.0,0.37163022]
[1728583722427,0.8608,59265.0,59249.0,0.08288775]
[1728583722730,0.8608,59265.0,59234.0,0.11674677]
[1728583722731,0.8608,59250.0,59219.0,0.0084]
[1728583722927,0.5,59226.0,59217.0,0.36937375]
[1728583723127,0.3608,59227.0,59223.0,0.25463335]
[1728583723432,0.5,59224.0,59218.0,0.25463335]
[1728583723630,0.3608,59219.0,59204.0,0.03098109]
[1728583723924,0.5,59216.0,59200.0,0.5079]
[1728583724129,0.5,59216.0,59203.0,0.00828058]
[1728583724826,0.00012489,59215.0,59205.0,0.3608]
[1728583725128,0.00012489,59215.0,59210.0,0.2520037]
[1728583725526,0.00012489,59215.0,59205.0,0.3608]
[1728583725828,0.00012489,59215.0,59206.0,0.25417967]
[1728583726225,0.00112489,59215.0,59206.0,0.25417967]
[1728583726538,0.00112489,59215.0,59206.0,0.61497967]
[1728583727029,0.945342,59210.0,59205.0,0.016]
[1728583727331,0.00013063,59209.0,59205.0,0.016]
[1728583727516,0.08467363,59209.0,59201.0,0.03010209]
[1728583727717,0.3608,59205.0,59192.0,0.084566]
[1728583727917,0.3608,59205.0,59200.0,0.42346194]
[1728583728729,0.3618,59205.0,59200.0,0.43146194]
[1728583729536,0.3618,59205.0,59200.0,0.43138194]
[1728583729927,0.5,59204.0,59200.0,0.07058194]
[1728583730122,0.5,59204.0,59200.0,0.07658194]
[1728583730827,0.8608,59204.0,59190.0,0.00253436]
[1728583731029,0.3608,59197.0,59190.0,0.00253436]
[1728583731331,0.3608,59197.0,59192.0,0.084567]
[1728583731833,0.3608,59197.0,59193.0,0.25318598]
[1728583732430,0.3608,59197.0,59190.0,0.01153436]
[1728583732630,0.00016939,59196.0,59190.0,0.01153436]
[1728583732826,0.3608,59191.0,59190.0,0.04256263]
[1728583733032,0.3608,59191.0,59190.0,0.01153436]
[1728583733426,0.3608,59191.0,59190.0,0.00253436]
[1728583733828,0.3608,59191.0,59185.0,0.0126733]
[1728583734045,0.3608,59191.0,59185.0,0.084576]
[1728583734228,0.3618,59191.0,59190.0,0.001]
[1728583734431,0.3618,59191.0,59186.0,0.1784722]
[1728583734638,0.5,59187.0,59183.0,0.06321705]
[1728583734935,0.3618,59191.0,59190.0,0.001]
[1728583735136,0.3619262,59191.0,59190.0,0.001]
[1728583735534,1.4687662,59191.0,59190.0,0.001]
[1728583735840,1.46864,59191.0,59183.0,0.00203651]
[1728583736138,0.5,59184.0,59181.0,0.00018961]
[1728583736335,0.00016939,59183.0,59181.0,0.00018961]
[1728583736841,0.00016939,59183.0,59182.0,0.25285166]
[1728583737036,0.00016939,59183.0,59182.0,0.1684136]
[1728583737244,0.00016939,59183.0,59181.0,0.00018961]
[1728583737634,0.03077437,59183.0,59181.0,0.00018961]
[1728583737835,0.04177437,59183.0,59181.0,0.00018961]
[1728583738438,0.084586,59179.0,59173.0,0.03]
[1728583738738,0.8608,59178.0,59173.0,0.03]
[1728583738938,0.8608,59178.0,59170.0,0.3608]
[1728583739343,0.8608,59178.0,59172.0,0.03253502]
[1728583739534,0.00019303,59177.0,59172.0,0.03253502]
[1728583739843,0.00019303,59177.0,59173.0,0.2536153]
[1728583740038,0.5,59175.0,59172.0,0.03253502]
[1728583740442,0.32,59173.0,59172.0,0.03253502]
[1728583740739,0.00019303,59177.0,59173.0,0.25362524]
[1728583740932,0.32,59175.0,59172.0,0.28616026]
[1728583741134,0.32,59175.0,59172.0,0.03253502]
[1728583741341,0.32,59175.0,59173.0,0.25362524]
[1728583741557,0.32,59175.0,59172.0,0.00253502]
[1728583741747,0.3608,59173.0,59172.0,0.00253502]
[1728583742246,0.3608,59173.0,59164.0,0.03]
[1728583742432,0.6808,59173.0,59167.0,0.3608]
[1728583742633,0.6808,59173.0,59167.0,0.084603]
[1728583742833,0.6808,59173.0,59171.0,0.084597]
[1728583743048,0.6808,59173.0,59168.0,0.25410907]
[1728583743347,0.00012134,59174.0,59172.0,0.61490907]
[1728583743544,0.001,59177.0,59176.0,0.08459]
[1728583744045,0.32,59184.0,59174.0,0.084593]
[1728583744432,0.32,59184.0,59177.0,0.084589]
[1728583744637,0.00015486,59183.0,59174.0,0.53375138]
[1728583744837,0.00015486,59183.0,59178.0,0.2537614]
[1728583745038,0.00015486,59183.0,59175.0,0.2537614]
[1728583745242,0.3608,59179.0,59174.0,0.43964416]
[1728583745546,0.3608,59179.0,59171.0,0.03088135]
[1728583745739,0.3608,59179.0,59164.0,0.35]
[1728583745740,0.001,59177.0,59175.0,0.25266125]
[1728583745938,0.001,59177.0,59174.0,0.25266125]
[1728583746133,0.001,59177.0,59168.0,0.3608]
[1728583746346,0.001,59177.0,59176.0,0.08459]
[1728583746532,0.3638,59179.0,59177.0,0.084589]
[1728583746834,0.003,59179.0,59178.0,0.33670783]
[1728583747240,0.00015486,59183.0,59175.0,0.3608]
[1728583747241,0.00015486,59183.0,59179.0,0.084585]
[1728583747441,0.0097,59177.0,59175.0,0.084591]
[1728583747648,0.0097,59177.0,59176.0,0.36899603]
[1728583747843,0.0097,59177.0,59176.0,0.11459]
[1728583748042,0.0097,59177.0,59176.0,0.36899603]
[1728583748947,0.0097,59177.0,59176.0,0.28440603]
[1728583749139,0.32,59180.0,59178.0,0.001]
[1728583749640,0.32,59180.0,59179.0,0.25395143]
[1728583749837,0.32,59180.0,59178.0,0.001]
[1728583750046,0.32,59180.0,59174.0,0.3608]
[1728583750446,0.3608,59181.0,59175.0,0.2535992]
[1728583750640,0.32,59178.0,59175.0,0.2535992]
[1728583750836,0.32,59178.0,59168.0,0.3608]
[1728583751249,0.32,59172.0,59169.0,0.2535992]
[1728583751445,0.00012708,59171.0,59162.0,0.3608]
[1728583751653,0.00012708,59171.0,59169.0,0.25435489]
[1728583751846,0.00012708,59171.0,59169.0,0.24135489]
[1728583752147,0.00012708,59171.0,59169.0,0.0846]
[1728583752340,0.00012708,59171.0,59170.0,0.28079748]
[1728583752747,0.00112708,59171.0,59170.0,0.25435489]
[1728583753153,0.00112708,59171.0,59169.0,0.25282172]
[1728583753452,0.00112708,59171.0,59170.0,0.001]
[1728583753952,0.00112708,59171.0,59170.0,0.66015982]
[1728583754149,0.00212708,59171.0,59170.0,0.66015982]
[1728583754657,0.00100001,59171.0,59170.0,1.76715982]
[1728583754841,0.3608,59181.0,59170.0,1.76715982]
[1728583754842,0.3608,59181.0,59171.0,0.084597]
[1728583755043,0.3608,59190.0,59180.0,0.6808]
[1728583755345,0.3608,59190.0,59181.0,0.43063493]
[1728583755346,0.32,59188.0,59181.0,0.43063493]
[1728583755551,0.3608,59185.0,59181.0,0.25217725]
[1728583755851,0.3608,59185.0,59174.0,0.3608]
[1728583755852,0.00011058,59184.0,59174.0,0.3608]
[1728583756150,0.005,59181.0,59175.0,0.25491643]
[1728583756850,0.005,59181.0,59176.0,0.08459]
[1728583757247,0.005,59181.0,59180.0,0.001]
[1728583757647,0.005,59181.0,59177.0,0.25252019]
[1728583757848,0.009,59181.0,59180.0,0.25329986]
[1728583758145,0.009,59181.0,59178.0,0.25329986]
[1728583758146,1.11592,59181.0,59178.0,0.25329986]
[1728583758344,0.084594,59174.0,59158.0,0.36333548]
[1728583758544,0.3608,59163.0,59158.0,0.00253548]
[1728583758757,0.3608,59163.0,59159.0,0.25355207]
[1728583758758,0.404613,59160.0,59159.0,0.25355207]
[1728583758954,0.6808,59163.0,59144.0,0.00847748]
[1728583758955,0.00011058,59162.0,59144.0,0.00847748]
[1728583759250,0.00011058,59162.0,59150.0,0.25355207]
[1728583759251,0.3608,59156.0,59150.0,0.25355207]
[1728583759454,0.32,59153.0,59147.0,0.3608]
[1728583759755,0.3608,59158.0,59147.0,0.3608]
[1728583759756,0.6808,59158.0,59151.0,0.25503992]
[1728583759953,0.6808,59158.0,59152.0,0.3608]
[1728583760253,0.3608,59153.0,59142.0,0.03065425]
[1728583760441,0.32,59143.0,59139.0,0.02994462]
[1728583760641,0.00011058,59142.0,59136.0,0.3608]
[1728583761239,0.00011058,59142.0,59136.0,0.27652788]
[1728583761452,0.32,59137.0,59134.0,0.03042887]
[1728583762044,0.32,59137.0,59130.0,0.00828834]
[1728583762249,0.32,59132.0,59130.0,0.00828834]
[1728583762450,0.3608,59131.0,59127.0,0.00253704]
[1728583762659,0.32,59128.0,59127.0,0.00253704]
[1728583762851,0.3608,59131.0,59128.0,0.25253428]
[1728583763259,0.3608,59131.0,59127.0,0.00253704]
[1728583763452,0.3608,59131.0,59118.0,0.68938106]
[1728583763453,0.32,59128.0,59118.0,0.3608]
[1728583763648,0.3608,59126.0,59118.0,0.3608]
[1728583763853,0.00014847,59125.0,59124.0,0.2551227]
[1728583764063,0.00014847,59125.0,59119.0,0.2551227]
[1728583764249,0.00014847,59125.0,59118.0,0.19602212]
[1728583764455,0.00014847,59125.0,59120.0,0.084671]
[1728583764960,0.00014847,59125.0,59121.0,0.33839229]
[1728583765259,0.00714847,59125.0,59122.0,0.084667]
[1728583765446,0.00714847,59125.0,59121.0,0.18399183]
[1728583765447,0.00714847,59125.0,59120.0,0.43771512]
[1728583765758,0.00714847,59125.0,59118.0,0.03061562]
[1728583765759,0.01414847,59125.0,59122.0,0.25479458]
[1728583766059,0.01414847,59125.0,59123.0,0.25479458]
[1728583766250,0.01414847,59125.0,59119.0,0.25479458]
[1728583766456,0.01414847,59125.0,59093.0,0.06723913]
[1728583766457,0.65265022,59074.0,59065.0,0.3608]
[1728583766653,0.32,59120.0,59050.0,0.05]
[1728583766654,0.08475,59065.0,59052.0,0.06712555]
[1728583766854,0.0086161,59090.0,59050.0,0.05]
[1728583766855,0.3608,59053.0,59050.0,0.033]
[1728583767050,0.00013508,59052.0,59050.0,0.033]
[1728583767258,0.89893134,59053.0,59050.0,0.01745105]
[1728583767465,0.50804,59052.0,59050.0,0.01745105]
[1728583767760,0.50804,59052.0,59028.0,0.084802]
[1728583767955,0.03068573,59069.0,59022.0,0.4408]
[1728583767956,0.3608,59031.0,59030.0,0.0848]
[1728583768258,0.36099196,59031.0,59030.0,0.0848]
[1728583768460,0.36099196,59031.0,59030.0,1.193]
[1728583768763,0.36099196,59031.0,59030.0,1.2951325]
[1728583769062,0.36099196,59031.0,59030.0,1.1082]
[1728583769063,0.00016303,59031.0,59030.0,1.1082]
[1728583769254,0.00016303,59031.0,59030.0,1.55003782]
[1728583769561,0.014,59052.0,59031.0,0.5082]
[1728583769757,0.014,59052.0,59051.0,0.084769]
[1728583770157,0.014,59052.0,59038.0,0.3608]
[1728583770357,0.3608,59053.0,59038.0,0.3608]
[1728583770358,0.3608,59053.0,59051.0,0.5]
[1728583770570,0.0084,59121.0,59051.0,0.5]
[1728583770571,0.3608,59067.0,59058.0,0.084759]
[1728583770857,0.3608,59077.0,59067.0,0.084745]
[1728583771160,0.3608,59077.0,59072.0,0.084738]
[1728583771161,0.00011349,59076.0,59072.0,0.084738]
[1728583771549,0.3608,59074.0,59065.0,0.25478405]
[1728583771748,0.3608,59074.0,59064.0,0.01]
[1728583771749,0.3608,59069.0,59064.0,0.01]
[1728583772264,0.3608,59069.0,58999.0,0.084843]
[1728583772265,0.0004,59065.0,59055.0,0.084762]
[1728583772461,0.3612,59061.0,59055.0,0.084762]
[1728583772762,0.3612,59061.0,59047.0,0.3708]
[1728583772963,0.3612,59061.0,59044.0,0.00013654]
[1728583772964,0.3608,59048.0,59044.0,0.00013654]
[1728583773357,0.3608,59048.0,59035.0,0.28903896]
[1728583773663,0.3595,59048.0,59035.0,0.28903896]
[1728583773861,0.3608,59042.0,59036.0,0.18569365]
[1728583774261,0.3608,59042.0,59035.0,0.37383096]
[1728583774464,0.00018323,59041.0,59035.0,0.37379096]
[1728583774660,0.00018323,59041.0,59035.0,0.084792]
[1728583774961,0.3608,59038.0,59030.0,0.5]
[1728583775265,0.00018323,59041.0,59039.0,0.084786]
[1728583775763,0.00018323,59041.0,59040.0,0.25396772]
[1728583776062,0.00518323,59041.0,59040.0,1.30311945]
[1728583776268,0.007,59048.0,59047.0,0.084775]
[1728583776458,0.007,59048.0,59041.0,0.5]
[1728583776664,0.3608,59049.0,59047.0,0.33913373]
[1728583776858,0.3608,59049.0,59047.0,0.584775]
[1728583777167,0.3608,59056.0,59048.0,0.95677434]
[1728583777375,0.3608,59056.0,59054.0,0.084764]
[1728583777564,6.68e-05,59055.0,59054.0,0.084764]
[1728583777767,6.68e-05,59055.0,59054.0,0.684764]
[1728583778070,0.3608,59066.0,59061.0,0.084754]
[1728583778262,0.3608,59066.0,59060.0,0.0004]
[1728583778462,0.3608,59066.0,59062.0,0.2541466]
[1728583778655,0.3608,59066.0,59061.0,0.44977916]
[1728583778862,0.3608,59066.0,59061.0,0.19478109]
[1728583779162,0.5,59064.0,59062.0,0.25499807]
[1728583779363,0.3608,59063.0,59060.0,0.0004]
[1728583779564,0.3608,59063.0,59051.0,0.39032194]
[1728583779865,0.7216,59056.0,59052.0,0.25363636]
[1728583780068,0.7246,59056.0,59052.0,0.25363636]
[1728583780565,0.7216,59056.0,59054.0,0.084765]
[1728583780769,0.7216,59056.0,59052.0,0.25363636]
[1728583780964,0.7216,59056.0,59055.0,0.25342292]
[1728583781164,0.7216,59056.0,59053.0,0.084766]
[1728583781356,0.7216,59056.0,59054.0,0.084764]
[1728583781562,0.7216,59056.0,59000.0,0.3778]
[1728583781563,0.3608,59048.0,59000.0,0.3778]
[1728583781762,0.3608,59056.0,59000.0,0.3778]
[1728583781763,0.3608,59020.0,59007.0,0.36092689]
[1728583781962,0.5,59014.0,59012.0,0.084825]
[1728583782258,0.0004,59016.0,59014.0,0.083722]
[1728583782461,0.0004,59016.0,59013.0,0.35637638]
[1728583782664,0.0004,59016.0,59015.0,0.44209082]
[1728583782866,0.0004,59016.0,59014.0,1.03527282]
[1728583783070,0.0004,59016.0,59015.0,0.6927287]
[1728583783271,0.0004,59016.0,59015.0,0.43860838]
[1728583783564,0.0004,59016.0,59014.0,0.004]
[1728583784362,0.0004,59016.0,59015.0,0.94345208]
[1728583784560,0.0014,59016.0,59015.0,0.007]
[1728583784771,0.001,59020.0,59015.0,1.11536]
[1728583785069,0.3608,59026.0,59025.0,0.084807]
[1728583785268,0.3608,59026.0,59019.0,0.084815]
[1728583785458,0.3608,59026.0,59021.0,0.084812]
[1728583785658,0.3608,59026.0,59020.0,0.25468339]
[1728583785868,0.3608,59026.0,59016.0,0.44349385]
[1728583786073,0.3608,59026.0,59021.0,0.18881046]
[1728583786268,0.3608,59026.0,59018.0,0.94256927]
[1728583786470,0.3608,59026.0,59022.0,0.25468339]
[1728583786670,0.3648,59026.0,59024.0,0.584808]
[1728583787063,0.3648,59026.0,59025.0,0.95104849]
[1728583787372,0.3698,59026.0,59025.0,0.69612588]
[1728583787564,0.3698,59026.0,59025.0,1.29612588]
[1728583787765,0.3698,59026.0,59025.0,1.63524121]
[1728583787960,0.3648,59026.0,59025.0,1.63524121]
[1728583788165,0.009,59026.0,59025.0,1.63524121]
[1728583788468,0.3608,59033.0,59025.0,1.91123421]
[1728583788671,0.3608,59033.0,59028.0,0.084802]
[1728583788873,0.005,59026.0,59025.0,0.35775615]
[1728583789071,0.005,59026.0,59015.0,0.00893601]
[1728583789072,0.009,59026.0,59016.0,0.02418068]
[1728583789271,0.3608,59022.0,59020.0,0.5]
[1728583789469,0.3598,59022.0,59020.0,0.49996]
[1728583789770,0.3598,59022.0,59021.0,0.17654298]
[1728583790469,0.3598,59022.0,59021.0,1.36963598]
[1728583790675,0.3598,59022.0,59021.0,1.62313217]
[1728583791370,0.3598,59022.0,59021.0,1.64857217]
[1728583791673,0.3598,59022.0,59021.0,1.53869411]
[1728583792076,0.3598,59022.0,59021.0,1.54069411]
[1728583792269,0.3598,59022.0,59021.0,0.25549619]
[1728583792764,0.3598,59022.0,59021.0,0.85549619]
[1728583792970,0.3608,59027.0,59021.0,2.13805606]
[1728583793272,0.3608,59027.0,59024.0,0.084808]
[1728583793570,0.3608,59027.0,59025.0,0.19313038]
[1728583793777,0.3608,59027.0,59026.0,0.50824]
[1728583793969,0.3608,59027.0,59025.0,0.19313038]
[1728583794171,0.3658,59027.0,59026.0,0.19313038]
[1728583794477,0.3658,59027.0,59025.0,0.17685745]
[1728583794672,0.3658,59027.0,59022.0,0.43231495]
[1728583794867,0.3658,59027.0,59025.0,0.17685745]
[1728583795069,0.3658,59027.0,59025.0,0.42978579]
[1728583795372,0.3658,59027.0,59022.0,0.19404896]
[1728583795373,0.3698,59027.0,59022.0,0.19404896]
[1728583795573,0.3608,59023.0,59015.0,0.0004]
[1728583795880,0.3608,59023.0,59018.0,0.084817]
[1728583796183,0.3608,59023.0,59015.0,0.0004]
[1728583796184,0.3608,59023.0,59019.0,0.25577048]
[1728583796475,0.3608,59023.0,58994.0,0.52544]
[1728583796476,0.7216,59020.0,58994.0,0.52544]
[1728583796680,0.3608,59005.0,58994.0,0.02544]
[1728583796864,0.3608,59005.0,59002.0,0.08484]
[1728583797065,0.3608,59005.0,58995.0,0.1674]
[1728583797066,0.3608,59005.0,59004.0,0.18818035]
[1728583797272,0.3608,59005.0,58995.0,0.1674]
[1728583797576,0.3608,59000.0,58990.0,0.46283991]
[1728583797764,0.3608,59000.0,58991.0,0.084856]
[1728583797966,0.8608,58995.0,58979.0,0.02466955]
[1728583798280,0.3608,58983.0,58980.0,0.084871]
[1728583798474,0.3608,58988.0,58980.0,0.25320506]
[1728583798776,0.3608,58981.0,58958.0,0.3608]
[1728583799079,0.3608,58964.0,58958.0,0.73820185]
[1728583799277,0.5,58959.0,58958.0,0.3598]
[1728583799777,1.96964,58959.0,58950.0,0.0025444]
[1728583799981,0.3608,58951.0,58942.0,0.4748]
[1728583800168,0.3608,58951.0,58942.0,0.37840185]
[1728583800568,0.001,58964.0,58950.0,0.8608]
[1728583801065,0.5,58957.0,58938.0,0.5]
[1728583801280,0.5,58957.0,58942.0,0.003]
[1728583801476,0.3608,58954.0,58942.0,0.003]
[1728583801775,0.3608,58954.0,58942.0,0.38140185]
[1728583802175,0.00232,58957.0,58950.0,0.3608]
[1728583802370,0.00254613,58971.0,58955.0,0.3608]
[1728583802577,0.3608,58977.0,58963.0,0.5]
[1728583802882,0.3608,58977.0,58963.0,0.584896]
[1728583802883,0.002,58964.0,58963.0,0.584896]
[1728583803184,0.002,58964.0,58963.0,0.96329785]
[1728583803386,0.3608,58983.0,58963.0,0.96329785]
[1728583803387,0.3608,58983.0,58963.0,2.07262901]
[1728583803680,0.00078,58996.0,58995.0,0.08485]
[1728583803876,0.3608,59007.0,58983.0,0.084867]
[1728583803877,0.3608,59007.0,58991.0,0.3608]
[1728583804176,0.5018,59013.0,58996.0,0.3608]
[1728583804378,0.3608,59014.0,59012.0,0.084825]
[1728583804579,0.0004,59020.0,59012.0,0.5]
[1728583804780,0.0004,59020.0,59019.0,0.084815]
[1728583805177,0.0004,59020.0,59019.0,0.46321685]
[1728583805679,0.0004,59020.0,59019.0,1.0794078]
[1728583805882,0.0004,59020.0,59019.0,0.46321685]
[1728583806081,0.0004,59020.0,59019.0,0.7186078]
[1728583806381,0.3608,59034.0,59019.0,1.93748309]
[1728583806586,0.3608,59034.0,59026.0,0.5]
[1728583806775,0.3608,59034.0,59026.0,0.79396379]
[1728583806981,0.3608,59028.0,59027.0,0.28017429]
[1728583807274,0.3608,59041.0,59032.0,0.084797]
[1728583807478,0.3608,59041.0,59032.0,0.73920185]
[1728583807979,0.8608,59047.0,59032.0,0.73920185]
[1728583808481,0.3608,59042.0,59032.0,0.73920185]
[1728583808686,0.8608,59042.0,59032.0,0.3608]
[1728583808877,0.5,59037.0,59025.0,0.3608]
[1728583809077,0.5,59037.0,59025.0,0.73920185]
[1728583809290,0.005,59028.0,59027.0,0.084804]
[1728583809475,0.084757,59060.0,59027.0,0.084804]
[1728583809476,0.3608,59057.0,59027.0,0.5]
[1728583809680,0.3608,59066.0,59053.0,0.5]
[1728583809884,0.3608,59066.0,59064.0,0.5]
[1728583810189,0.3608,59078.0,59064.0,1.1154879]